lending/lending_fUSD_20240723
["ID","MTS","AMOUNT","RATE_DAILY","PERIOD"]
[332946105,1721698251867,-644.27,0.00010958,5]
[332946106,1721698251877,-644.27,0.00010958,6]
[332946107,1721698251887,-250.34375745,0.00010958,2]
[332946108,1721698251903,-249.65624255,0.00010958,2]
[332946109,1721698251913,-644.27,0.00010958,7]
[332946110,1721698251923,-644.27,0.00010958,8]
[332946111,1721698251932,-644.27,0.00010958,9]
[332946112,1721698251943,-644.27,0.00010958,10]
[332946113,1721698251952,-644.27,0.00010958,11]
[332946114,1721698251962,-303.81812478,0.00010958,2]
[332946115,1721698251972,-644.80957426,0.00010958,2]
[332946116,1721698251981,-500.0,0.00010958,2]
[332946117,1721698251991,-500.0,0.00010958,2]
[332946118,1721698252000,-500.0,0.00010958,3]
[332946119,1721698252010,-537.52074813,0.00010958,4]
[332946120,1721698252019,-500.0,0.00010958,3]
[332946121,1721698252029,-500.0,0.00010958,2]
[332946122,1721698252038,-257.02364337,0.00010958,4]
[332946123,1721698252058,-242.97635663,0.00010958,4]
[332946124,1721698252068,-279.96217574,0.00010958,5]
[332946127,1721698458494,156.59,8.219e-05,2]
[332946128,1721698515013,484.99221107,8.219e-05,2]
[332946132,1721698912647,2000.0,8.219e-05,2]
[332946133,1721698912670,2000.0,8.219e-05,2]
[332946134,1721698912691,333.35790789,8.219e-05,2]
[332946135,1721698970767,156.59,8.219e-05,2]
[332946158,1721699261473,-200.0,9.634e-05,2]
[332946159,1721699261498,-250.0,9.634e-05,2]
[332946160,1721699261525,-1704.31,9.825e-05,2]
[332946167,1721699432263,-16824.264934,9.645e-05,2]
[332946169,1721699432276,-7075.735066,9.645e-05,2]
[332946170,1721699432287,-3321.89,9.825e-05,2]
[332946171,1721699432297,-4374.49567095,9.825e-05,2]
[332946172,1721699432306,-400.0,9.827e-05,2]
[332946173,1721699432316,-169.68,9.827e-05,2]
[332946174,1721699432326,-300.0,9.84e-05,2]
[332946175,1721699432336,-2774.1603,9.841e-05,2]
[332946176,1721699432345,-439.8,9.859e-05,2]
[332946177,1721699432355,-150.0,9.918e-05,2]
[332946178,1721699432365,-833.54,9.941e-05,2]
[332946179,1721699432375,-420.11,9.941e-05,2]
[332946180,1721699432385,-418.55,9.941e-05,2]
[332946181,1721699432395,-603.1,9.941e-05,2]
[332946182,1721699432405,-150.0,9.958e-05,2]
[332946183,1721699432415,-170.69,9.959e-05,2]
[332946184,1721699432424,-499.99,9.959e-05,2]
[332946185,1721699432434,-9576.58471772,9.959e-05,2]
[332946186,1721699432446,-6126.08528228,9.959e-05,2]
[332946187,1721699432455,-355.75,9.978e-05,2]
[332946188,1721699432466,-1010.52636295,0.0001,2]
[332946189,1721699432510,-0.22270931,0.0001,2]
[332946190,1721699432526,-38.28521131,0.0001,2]
[332946191,1721699432536,-9999.99,0.0001,2]
[332946192,1721699432546,-833.54,0.00010041,2]
[332946193,1721699432556,-420.11,0.00010041,2]
[332946194,1721699432566,-529.84,0.00010078,2]
[332946195,1721699432575,-529.84,0.00010078,2]
[332946196,1721699432585,-924.18,0.00010078,2]
[332946197,1721699432595,-529.84,0.00010078,2]
[332946198,1721699432605,-150.0,0.0001023,2]
[332946199,1721699432615,-179.99,0.0001023,2]
[332946200,1721699432625,-700.0,0.0001026,2]
[332946201,1721699432635,-156.59,0.00010595,2]
[332946202,1721699432645,-286.9573,0.0001064,2]
[332946203,1721699432655,-500.7884,0.0001064,2]
[332946204,1721699432665,-1000.0,0.0001064,2]
[332946205,1721699432675,-593.0,0.0001074,2]
[332946206,1721699432684,-2500.0,0.00010757,2]
[332946207,1721699432695,-1718.7542,0.00010757,2]
[332946208,1721699432704,-244.92191331,0.00010758,2]
[332946209,1721699432714,-244.9219133,0.00010783,2]
[332946210,1721699432724,-3330.265987,0.000108,2]
[332946211,1721699432734,-244.9219133,0.00010808,2]
[332946212,1721699432745,-420.0,0.00010824,2]
[332946213,1721699432756,-244.9219133,0.00010833,2]
[332946214,1721699432766,-3000.0,0.0001085,2]
[332946215,1721699432775,-4289.745,0.00010857,2]
[332946216,1721699432784,-283977.057,0.00010857,2]
[332946217,1721699432794,-244.9219133,0.00010858,2]
[332946218,1721699432804,-178.50921177,0.00010858,2]
[332946219,1721699432814,-5983.99054202,0.00010858,2]
[332946220,1721699432823,-312.27078025,0.00010858,2]
[332946221,1721699432833,-1796.51,0.000109,2]
[332946222,1721699432842,-7576.0,0.000109,2]
[332946223,1721699432852,-2252.0,0.000109,2]
[332946224,1721699432862,-500.0,0.00010901,2]
[332946225,1721699432872,-255.0,0.00010954,2]
[332946226,1721699432885,-277031.0,0.00010957,2]
[332946227,1721699432895,-500.0,0.00010958,2]
[332946228,1721699432904,-151.40304396,0.00010958,2]
[332946229,1721699432914,-500.0,0.00010958,2]
[332946230,1721699432924,-500.0,0.00010958,2]
[332946231,1721699432934,-500.0,0.00010958,2]
[332946232,1721699432943,-501.90641658,0.00010958,2]
[332946233,1721699432953,-500.0,0.00010958,2]
[332946234,1721699432964,-326.20743885,0.00010958,2]
[332946235,1721699432985,-173.79256115,0.00010958,2]
[332946236,1721699432997,-186.45394085,0.00010958,2]
[332946237,1721699433062,-313.54605915,0.00010958,2]
[332946238,1721699433072,-500.0,0.00010958,2]
[332946239,1721699433082,-500.0,0.00010958,2]
[332946240,1721699433093,-500.0,0.00010958,2]
[332946241,1721699433103,-414.44966045,0.00010958,2]
[332946242,1721699433112,-500.0,0.00010958,2]
[332946243,1721699433122,-416.07682134,0.00010958,2]
[332946244,1721699433142,-83.92317866,0.00010958,2]
[332946245,1721699433152,-500.0,0.00010958,2]
[332946246,1721699433162,-358.68654901,0.00010958,2]
[332946247,1721699433171,-500.0,0.00010958,2]
[332946248,1721699433181,-500.0,0.00010958,2]
[332946249,1721699433191,-500.0,0.00010958,2]
[332946250,1721699433201,-155.08467233,0.00010958,2]
[332946288,1721699438983,-301.52429435,0.00010958,2]
[332946289,1721699439035,-43.39103332,0.00010958,2]
[332946290,1721699439045,-500.0,0.00010958,2]
[332946291,1721699439055,-310.19266789,0.00010958,2]
[332946308,1721699440747,-189.80733211,0.00010958,2]
[332946310,1721699440759,-500.0,0.00010958,2]
[332946312,1721699440770,-500.0,0.00010958,2]
[332946314,1721699440781,-407.07273426,0.00010958,2]
[332946322,1721699440846,-92.92726574,0.00010958,2]
[332946325,1721699440857,-501.70505054,0.00010958,2]
[332946327,1721699440868,-150.75154781,0.00010958,2]
[332946329,1721699440882,-33.49543652,0.00010958,2]
[332946331,1721699440898,-466.50456348,0.00010958,2]
[332946333,1721699440910,-208.02543652,0.00010958,2]
[332946336,1721699440925,-291.97456348,0.00010958,2]
[332946338,1721699440935,-56.97543652,0.00010958,2]
[332946340,1721699440949,-443.02456348,0.00010958,2]
[332946342,1721699440960,-500.0,0.00010958,2]
[332946344,1721699440973,-500.0,0.00010958,2]
[332946346,1721699440984,-500.0,0.00010958,2]
[332946348,1721699440995,-428.45040495,0.00010958,2]
[332946351,1721699441013,-71.54959505,0.00010958,2]
[332946353,1721699441023,-151.0,0.00010958,2]
[332946355,1721699441034,-157.447715,0.00010958,2]
[332946357,1721699441044,-1942.12832565,0.00010958,2]
[332946360,1721699441063,-340.78144659,0.00010958,2]
[332946364,1721699441100,-574.61696002,0.00010958,2]
[332946367,1721699441112,-312.3160075,0.00010958,2]
[332946369,1721699441124,-190.42954218,0.00010958,2]
[332946371,1721699441135,-150.43033838,0.00010958,2]
[332946373,1721699441145,-500.0,0.00010958,2]
[332946375,1721699441155,-500.0,0.00010958,2]
[332946377,1721699441165,-219.8360946,0.00010958,2]
[332946379,1721699441176,-500.0,0.00010958,2]
[332946381,1721699441186,-500.0,0.00010958,2]
[332946383,1721699441196,-500.0,0.00010958,2]
[332946385,1721699441207,-500.0,0.00010958,2]
[332946387,1721699441217,-500.0,0.00010958,2]
[332946389,1721699441227,-500.0,0.00010958,2]
[332946391,1721699441237,-500.0,0.00010958,2]
[332946393,1721699441250,-500.0,0.00010958,2]
[332946395,1721699441260,-500.0,0.00010958,2]
[332946397,1721699441271,-448.77147677,0.00010958,2]
[332946399,1721699441281,-500.0,0.00010958,2]
[332946401,1721699441291,-500.0,0.00010958,2]
[332946403,1721699441301,-500.0,0.00010958,2]
[332946405,1721699441311,-541.9715955,0.00010958,2]
[332946407,1721699441322,-500.0,0.00010958,2]
[332946409,1721699441333,-500.0,0.00010958,2]
[332946412,1721699441343,-500.0,0.00010958,2]
[332946414,1721699441354,-500.0,0.00010958,2]
[332946416,1721699441364,-500.0,0.00010958,2]
[332946418,1721699441378,-500.0,0.00010958,2]
[332946420,1721699441388,-500.0,0.00010958,2]
[332946422,1721699441398,-500.0,0.00010958,2]
[332946424,1721699441409,-500.0,0.00010958,2]
[332946426,1721699441420,-644.74084553,0.00010958,2]
[332946428,1721699441430,-500.0,0.00010958,2]
[332946430,1721699441440,-500.0,0.00010958,2]
[332946432,1721699441451,-624.96825148,0.00010958,2]
[332946434,1721699441461,-500.0,0.00010958,2]
[332946436,1721699441471,-500.0,0.00010958,2]
[332946438,1721699441481,-500.0,0.00010958,2]
[332946440,1721699441492,-500.0,0.00010958,2]
[332946442,1721699441505,-500.0,0.00010958,2]
[332946444,1721699441516,-500.0,0.00010958,2]
[332946446,1721699441526,-500.0,0.00010958,2]
[332946448,1721699441535,-500.0,0.00010958,2]
[332946450,1721699441545,-501.09149038,0.00010958,2]
[332946452,1721699441555,-500.0,0.00010958,2]
[332946454,1721699441565,-503.02286152,0.00010958,2]
[332946456,1721699441575,-260.25855556,0.00010958,2]
[332946457,1721699441585,-500.0,0.00010958,2]
[332946459,1721699441595,-500.0,0.00010958,2]
[332946461,1721699441605,-500.0,0.00010958,2]
[332946463,1721699441616,-500.0,0.00010958,2]
[332946465,1721699441625,-505.33251064,0.00010958,2]
[332946467,1721699441635,-500.0,0.00010958,2]
[332946469,1721699441646,-500.0,0.00010958,2]
[332946471,1721699441656,-500.0,0.00010958,2]
[332946473,1721699441666,-500.0,0.00010958,2]
[332946475,1721699441677,-503.76788417,0.00010958,2]
[332946477,1721699441686,-500.0,0.00010958,2]
[332946479,1721699441697,-229.343396,0.00010958,2]
[332946481,1721699441707,-500.0,0.00010958,2]
[332946483,1721699441717,-500.0,0.00010958,2]
[332946485,1721699441727,-500.0,0.00010958,2]
[332946487,1721699441737,-500.0,0.00010958,2]
[332946489,1721699441750,-500.0,0.00010958,2]
[332946491,1721699441760,-500.0,0.00010958,2]
[332946493,1721699441771,-500.0,0.00010958,2]
[332946495,1721699441784,-500.0,0.00010958,2]
[332946497,1721699441793,-500.0,0.00010958,2]
[332946499,1721699441803,-505.07499582,0.00010958,2]
[332946501,1721699441814,-500.0,0.00010958,2]
[332946503,1721699441825,-500.0,0.00010958,2]
[332946505,1721699441835,-500.0,0.00010958,2]
[332946507,1721699441845,-500.0,0.00010958,2]
[332946509,1721699441855,-500.0,0.00010958,2]
[332946511,1721699441865,-500.0,0.00010958,2]
[332946513,1721699441876,-500.0,0.00010958,2]
[332946515,1721699441886,-355.46367668,0.00010958,2]
[332946517,1721699441898,-500.0,0.00010958,2]
[332946519,1721699441908,-500.0,0.00010958,2]
[332946522,1721699441926,-500.0,0.00010958,2]
[332946525,1721699441944,-500.0,0.00010958,2]
[332946527,1721699441954,-500.0,0.00010958,2]
[332946529,1721699441965,-500.0,0.00010958,2]
[332946531,1721699441974,-500.0,0.00010958,2]
[332946533,1721699441984,-500.0,0.00010958,2]
[332946535,1721699441994,-500.0,0.00010958,2]
[332946537,1721699442004,-501.58827145,0.00010958,2]
[332946539,1721699442014,-500.0,0.00010958,2]
[332946541,1721699442024,-500.0,0.00010958,2]
[332946543,1721699442034,-500.0,0.00010958,2]
[332946545,1721699442044,-500.0,0.00010958,2]
[332946547,1721699442054,-500.0,0.00010958,2]
[332946549,1721699442066,-500.0,0.00010958,2]
[332946551,1721699442076,-500.0,0.00010958,2]
[332946553,1721699442086,-500.0,0.00010958,2]
[332946555,1721699442096,-500.0,0.00010958,2]
[332946557,1721699442107,-500.0,0.00010958,2]
[332946559,1721699442117,-500.0,0.00010958,2]
[332946561,1721699442127,-500.0,0.00010958,2]
[332946563,1721699442137,-500.0,0.00010958,2]
[332946565,1721699442149,-246.61606147,0.00010958,2]
[332946567,1721699442159,-500.0,0.00010958,2]
[332946569,1721699442169,-500.0,0.00010958,2]
[332946571,1721699442179,-500.0,0.00010958,2]
[332946573,1721699442189,-500.0,0.00010958,2]
[332946575,1721699442199,-500.0,0.00010958,2]
[332946578,1721699442209,-500.0,0.00010958,2]
[332946580,1721699442220,-500.0,0.00010958,2]
[332946582,1721699442230,-500.0,0.00010958,2]
[332946584,1721699442240,-500.0,0.00010958,2]
[332946586,1721699442251,-500.0,0.00010958,2]
[332946588,1721699442262,-501.38049476,0.00010958,2]
[332946590,1721699442272,-500.0,0.00010958,2]
[332946592,1721699442282,-522.44737989,0.00010958,2]
[332946594,1721699442292,-500.0,0.00010958,2]
[332946596,1721699442303,-500.0,0.00010958,2]
[332946598,1721699442313,-500.0,0.00010958,2]
[332946600,1721699442323,-500.0,0.00010958,2]
[332946602,1721699442333,-500.0,0.00010958,2]
[332946604,1721699442343,-500.0,0.00010958,2]
[332946606,1721699442353,-500.0,0.00010958,2]
[332946608,1721699442363,-500.0,0.00010958,2]
[332946611,1721699442378,-500.0,0.00010958,2]
[332946613,1721699442388,-500.0,0.00010958,2]
[332946615,1721699442398,-500.0,0.00010958,2]
[332946617,1721699442408,-500.0,0.00010958,2]
[332946619,1721699442418,-500.0,0.00010958,2]
[332946621,1721699442428,-500.0,0.00010958,2]
[332946623,1721699442439,-186.25669593,0.00010958,2]
[332946625,1721699442450,-500.0,0.00010958,2]
[332946627,1721699442460,-500.0,0.00010958,2]
[332946629,1721699442471,-500.0,0.00010958,2]
[332946631,1721699442481,-500.0,0.00010958,2]
[332946633,1721699442492,-500.0,0.00010958,2]
[332946635,1721699442503,-500.0,0.00010958,2]
[332946637,1721699442514,-500.0,0.00010958,2]
[332946640,1721699442525,-500.0,0.00010958,2]
[332946642,1721699442535,-500.0,0.00010958,2]
[332946644,1721699442546,-500.0,0.00010958,2]
[332946646,1721699442556,-500.0,0.00010958,2]
[332946648,1721699442566,-500.0,0.00010958,2]
[332946650,1721699442577,-446.98159352,0.00010958,2]
[332946652,1721699442588,-500.0,0.00010958,2]
[332946654,1721699442598,-500.0,0.00010958,2]
[332946656,1721699442608,-500.0,0.00010958,2]
[332946658,1721699442618,-500.0,0.00010958,2]
[332946660,1721699442629,-500.0,0.00010958,2]
[332946662,1721699442639,-239.06915893,0.00010958,2]
[332946664,1721699442648,-500.0,0.00010958,2]
[332946666,1721699442658,-500.0,0.00010958,2]
[332946668,1721699442669,-500.0,0.00010958,2]
[332946670,1721699442679,-500.0,0.00010958,2]
[332946672,1721699442689,-500.0,0.00010958,2]
[332946674,1721699442699,-500.0,0.00010958,2]
[332946676,1721699442711,-500.0,0.00010958,2]
[332946678,1721699442721,-500.0,0.00010958,2]
[332946680,1721699442732,-440.17230072,0.00010958,2]
[332946682,1721699442742,-500.0,0.00010958,2]
[332946684,1721699442754,-500.0,0.00010958,2]
[332946686,1721699442764,-500.0,0.00010958,2]
[332946688,1721699442775,-599.93,0.00010958,2]
[332946690,1721699442786,-500.0,0.00010958,2]
[332946692,1721699442797,-599.93,0.00010958,2]
[332946694,1721699442808,-500.0,0.00010958,2]
[332946697,1721699442823,-599.93,0.00010958,2]
[332946699,1721699442834,-500.0,0.00010958,2]
[332946701,1721699442845,-599.93,0.00010958,2]
[332946703,1721699442855,-500.0,0.00010958,2]
[332946705,1721699442866,-599.93,0.00010958,2]
[332946707,1721699442877,-500.0,0.00010958,2]
[332946709,1721699442890,-599.93,0.00010958,2]
[332946711,1721699442902,-599.93,0.00010958,2]
[332946713,1721699442913,-599.93,0.00010958,2]
[332946715,1721699442923,-500.0,0.00010958,2]
[332946717,1721699442935,-599.93,0.00010958,2]
[332946719,1721699442946,-500.0,0.00010958,2]
[332946722,1721699442957,-599.93,0.00010958,2]
[332946724,1721699442969,-599.93,0.00010958,2]
[332946726,1721699442980,-500.0,0.00010958,2]
[332946728,1721699442991,-599.93,0.00010958,2]
[332946730,1721699443004,-599.93,0.00010958,2]
[332946732,1721699443015,-500.0,0.00010958,2]
[332946734,1721699443025,-599.93,0.00010958,2]
[332946736,1721699443036,-500.0,0.00010958,2]
[332946738,1721699443046,-599.93,0.00010958,2]
[332946740,1721699443057,-500.0,0.00010958,2]
[332946742,1721699443067,-599.93,0.00010958,2]
[332946744,1721699443078,-500.0,0.00010958,2]
[332946746,1721699443088,-599.93,0.00010958,2]
[332946749,1721699443098,-351.12577143,0.00010958,2]
[332946751,1721699443109,-599.93,0.00010958,2]
[332946754,1721699443120,-599.93,0.00010958,2]
[332946756,1721699443130,-599.93,0.00010958,2]
[332946758,1721699443141,-599.93,0.00010958,2]
[332946761,1721699443151,-599.93,0.00010958,2]
[332946764,1721699443162,-599.93,0.00010958,2]
[332946767,1721699443171,-600.15809279,0.00010958,2]
[332946769,1721699443182,-500.0,0.00010958,2]
[332946772,1721699443193,-500.0,0.00010958,2]
[332946775,1721699443203,-500.0,0.00010958,2]
[332946778,1721699443214,-500.0,0.00010958,2]
[332946780,1721699443225,-500.0,0.00010958,2]
[332946782,1721699443235,-500.0,0.00010958,2]
[332946784,1721699443247,-500.0,0.00010958,2]
[332946786,1721699443262,-634.53612329,0.00010958,2]
[332946788,1721699443272,-500.0,0.00010958,2]
[332946790,1721699443283,-500.0,0.00010958,2]
[332946792,1721699443293,-500.0,0.00010958,2]
[332946795,1721699443304,-500.0,0.00010958,2]
[332946797,1721699443314,-500.0,0.00010958,2]
[332946799,1721699443325,-2000.0,0.00010958,2]
[332946801,1721699443335,-500.0,0.00010958,2]
[332946803,1721699443346,-500.0,0.00010958,2]
[332946805,1721699443356,-500.0,0.00010958,2]
[332946807,1721699443367,-500.0,0.00010958,2]
[332946809,1721699443377,-500.0,0.00010958,2]
[332946811,1721699443388,-500.0,0.00010958,2]
[332946813,1721699443398,-500.0,0.00010958,2]
[332946815,1721699443409,-500.0,0.00010958,2]
[332946817,1721699443419,-500.0,0.00010958,2]
[332946819,1721699443429,-500.0,0.00010958,2]
[332946821,1721699443439,-500.0,0.00010958,2]
[332946823,1721699443450,-500.0,0.00010958,2]
[332946825,1721699443460,-500.0,0.00010958,2]
[332946827,1721699443469,-500.0,0.00010958,2]
[332946829,1721699443479,-500.0,0.00010958,2]
[332946831,1721699443490,-500.0,0.00010958,2]
[332946833,1721699443500,-500.0,0.00010958,2]
[332946835,1721699443510,-500.0,0.00010958,2]
[332946837,1721699443520,-500.0,0.00010958,2]
[332946839,1721699443530,-500.0,0.00010958,2]
[332946841,1721699443540,-500.0,0.00010958,2]
[332946842,1721699443550,-500.0,0.00010958,2]
[332946843,1721699443560,-500.0,0.00010958,2]
[332946844,1721699443570,-500.0,0.00010958,2]
[332946845,1721699443580,-500.0,0.00010958,2]
[332946846,1721699443590,-500.0,0.00010958,2]
[332946847,1721699443600,-500.0,0.00010958,2]
[332946848,1721699443609,-500.0,0.00010958,2]
[332946849,1721699443620,-500.0,0.00010958,2]
[332946850,1721699443630,-179.31523387,0.00010958,2]
[332946851,1721699443640,-172.34975924,0.00010958,2]
[332946852,1721699443650,-200.0,0.00010958,2]
[332946853,1721699443659,-1102.92,0.00010958,2]
[332946854,1721699443669,-500.0,0.00010958,2]
[332946855,1721699443679,-1102.92,0.00010958,2]
[332946856,1721699443689,-500.0,0.00010958,2]
[332946857,1721699443701,-500.0,0.00010958,2]
[332946858,1721699443712,-1102.92,0.00010958,2]
[332946859,1721699443722,-500.0,0.00010958,2]
[332946860,1721699443732,-500.0,0.00010958,2]
[332946861,1721699443742,-1102.92,0.00010958,2]
[332946862,1721699443754,-500.0,0.00010958,2]
[332946863,1721699443764,-1102.92,0.00010958,2]
[332946864,1721699443774,-500.0,0.00010958,2]
[332946865,1721699443784,-1102.92,0.00010958,2]
[332946866,1721699443795,-500.0,0.00010958,2]
[332946867,1721699443805,-1102.92,0.00010958,2]
[332946868,1721699443815,-500.0,0.00010958,2]
[332946869,1721699443825,-1102.92,0.00010958,2]
[332946870,1721699443835,-1102.92,0.00010958,2]
[332946871,1721699443845,-500.0,0.00010958,2]
[332946872,1721699443856,-1102.92,0.00010958,2]
[332946873,1721699443866,-1102.92,0.00010958,2]
[332946874,1721699443876,-500.0,0.00010958,2]
[332946875,1721699443889,-1102.92,0.00010958,2]
[332946876,1721699443899,-492.16937345,0.00010958,2]
[332946877,1721699444340,-1102.92,0.00010958,2]
[332946878,1721699444392,-1102.92,0.00010958,2]
[332946879,1721699444403,-1102.92,0.00010958,2]
[332946880,1721699444414,-1102.92,0.00010958,2]
[332946881,1721699444424,-1102.92,0.00010958,2]
[332946882,1721699444435,-1102.92,0.00010958,2]
[332946883,1721699444445,-1102.92,0.00010958,2]
[332946884,1721699444455,-500.0,0.00010958,2]
[332946885,1721699444466,-1102.92,0.00010958,2]
[332946886,1721699444477,-500.0,0.00010958,2]
[332946887,1721699444487,-1102.92,0.00010958,2]
[332946888,1721699444498,-500.0,0.00010958,2]
[332946889,1721699444508,-1102.92,0.00010958,2]
[332946890,1721699444518,-606.75459581,0.00010958,2]
[332946891,1721699444528,-1102.92,0.00010958,2]
[332946892,1721699444538,-1102.94092247,0.00010958,2]
[332946893,1721699444549,-500.0,0.00010958,2]
[332946894,1721699444559,-500.0,0.00010958,2]
[332946895,1721699444570,-704.56,0.00010958,2]
[332946896,1721699444579,-704.56,0.00010958,2]
[332946897,1721699444589,-500.0,0.00010958,2]
[332946898,1721699444599,-704.56,0.00010958,2]
[332946899,1721699444610,-500.0,0.00010958,2]
[332946900,1721699444620,-704.56,0.00010958,2]
[332946901,1721699444630,-500.0,0.00010958,2]
[332946902,1721699444641,-704.56,0.00010958,2]
[332946903,1721699444650,-500.0,0.00010958,2]
[332946904,1721699444661,-704.56,0.00010958,2]
[332946905,1721699444671,-500.0,0.00010958,2]
[332946906,1721699444682,-704.56,0.00010958,2]
[332946907,1721699444692,-500.0,0.00010958,2]
[332946908,1721699444702,-704.56,0.00010958,2]
[332946909,1721699444712,-500.0,0.00010958,2]
[332946910,1721699444723,-704.56,0.00010958,2]
[332946911,1721699444732,-500.0,0.00010958,2]
[332946912,1721699444743,-704.56,0.00010958,2]
[332946913,1721699444756,-386.47915669,0.00010958,2]
[332946914,1721699444766,-704.56,0.00010958,2]
[332946915,1721699444779,-704.56,0.00010958,2]
[332946916,1721699444790,-704.56,0.00010958,2]
[332946917,1721699444800,-704.56,0.00010958,2]
[332946918,1721699444815,-704.56,0.00010958,2]
[332946919,1721699444826,-704.56,0.00010958,2]
[332946920,1721699444836,-704.56,0.00010958,2]
[332946921,1721699444847,-704.56,0.00010958,2]
[332946922,1721699444858,-704.56,0.00010958,2]
[332946923,1721699444868,-704.56,0.00010958,2]
[332946924,1721699444879,-704.56,0.00010958,2]
[332946925,1721699444893,-704.56,0.00010958,2]
[332946926,1721699444904,-704.56,0.00010958,2]
[332946927,1721699444915,-704.6500038,0.00010958,2]
[332946928,1721699444925,-838.94826609,0.00010958,2]
[332946929,1721699444936,-500.0,0.00010958,2]
[332946930,1721699444947,-500.0,0.00010958,2]
[332946931,1721699444957,-500.0,0.00010958,2]
[332946932,1721699444969,-500.0,0.00010958,2]
[332946933,1721699444980,-500.0,0.00010958,2]
[332946934,1721699444990,-500.0,0.00010958,2]
[332946935,1721699445001,-500.0,0.00010958,2]
[332946936,1721699445013,-500.0,0.00010958,2]
[332946937,1721699445035,-500.0,0.00010958,2]
[332946938,1721699445060,-500.0,0.00010958,2]
[332946939,1721699445084,-500.0,0.00010958,2]
[332946940,1721699445108,-500.0,0.00010958,2]
[332946941,1721699445130,-500.0,0.00010958,2]
[332946942,1721699445153,-500.0,0.00010958,2]
[332946943,1721699445176,-500.0,0.00010958,2]
[332946944,1721699445199,-500.0,0.00010958,2]
[332946945,1721699445220,-500.0,0.00010958,2]
[332946946,1721699445244,-500.0,0.00010958,2]
[332946947,1721699445255,-500.0,0.00010958,2]
[332946948,1721699445267,-500.0,0.00010958,2]
[332946949,1721699445277,-1027.64,0.00010958,2]
[332946950,1721699445287,-515.05821505,0.00010958,2]
[332946951,1721699445298,-1027.64,0.00010958,2]
[332946952,1721699445309,-500.0,0.00010958,2]
[332946953,1721699445319,-500.0,0.00010958,2]
[332946954,1721699445330,-1027.64,0.00010958,2]
[332946955,1721699445341,-500.0,0.00010958,2]
[332946956,1721699445352,-1027.64,0.00010958,2]
[332946957,1721699445364,-500.0,0.00010958,2]
[332946958,1721699445375,-1027.64,0.00010958,2]
[332946959,1721699445391,-500.0,0.00010958,2]
[332946960,1721699445402,-1027.64,0.00010958,2]
[332946961,1721699445413,-500.0,0.00010958,2]
[332946962,1721699445423,-500.0,0.00010958,2]
[332946963,1721699445434,-500.0,0.00010958,2]
[332946964,1721699445444,-500.0,0.00010958,2]
[332946965,1721699445454,-500.0,0.00010958,2]
[332946966,1721699445465,-163.44458747,0.00010958,2]
[332946967,1721699445475,-500.0,0.00010958,2]
[332946968,1721699445485,-500.0,0.00010958,2]
[332946969,1721699445495,-500.0,0.00010958,2]
[332946970,1721699445506,-500.0,0.00010958,2]
[332946971,1721699445517,-500.0,0.00010958,2]
[332946972,1721699445527,-500.0,0.00010958,2]